Cogmind - Beta 16 @@@ ROGUE MODE // 2025.11.24 @ 20:29:01 Player: guru-sr Result: Self-destructed Performance ------------- Evolutions (3) 1500 Regions Visited (4) 800 Robots Destroyed (89) 445 Value Destroyed (2787) 2787 Prototype IDs (19) 380 Alien Tech Used (0) 0 Bonus (106) 106 TOTAL SCORE: 6018 Bonus ------- High Alert Combat Kills 106 Cogmind --------- Core Integrity 573/700 Matter 10/300 Energy 180/180 System Corruption 8% Temperature Cool (0) Movement Flying (100) Ox1 Location -7/Factory Parts ------- > --- POWER (1) -------- Meta Core > --- PROPULSION (4+1) - Improved Flight Unit Improved VTOL Module Improved VTOL Module > --- UTILITY (6) ------ Medium Storage Unit Hacking Suite Hacking Suite Makeshift Hacking Suite System Shield System Shield > --- WEAPON (2+1) ----- Subdweller Shrapnel Launcher > --- INVENTORY (10) --- Makeshift Power Source ECM Suite Improved Light Armor Plating Power Bank Improved Datajack Plasma Cutter Multitool Great Axe Greatsword Peak State ------------ > --- POWER ------------ Meta Core > --- PROPULSION ------- VTOL Module Improved Flight Unit Improved VTOL Module Improved VTOL Module > --- UTILITY ---------- Medium Storage Unit Hacking Suite Hacking Suite Makeshift Hacking Suite Improved Hacking Suite System Shield System Shield > --- WEAPON ----------- Great Axe > --- INVENTORY -------- Makeshift Power Source Seismic Detector ECM Suite Improved Light Armor Plating Hacking Suite Power Bank Subdweller Shrapnel Launcher Improved Datajack Plasma Cutter Multitool [Rating: 55] Favorites ----------- Power Ion Engine Engine Ion Engine Power Core Light Nuclear Core Propulsion Light Treads Treads Light Treads Wheel Compact Wheel Flight Unit Improved VTOL Module Utility Huge Storage Unit Device Seismic Detector Storage Huge Storage Unit Processor Targeting Computer Hackware Hacking Suite Protection Makeshift Thermal Plating Weapon Subdweller Machine Gun Energy Gun Medium Laser Energy Cannon Subdweller Beam Cannon Ballistic Gun Subdweller Machine Gun Ballistic Cannon Light Cannon Launcher Subdweller Shrapnel Launcher Special Weapon Mining Laser Slashing Weapon Great Axe Piercing Weapon Makeshift Spear Build | -11 -10 -10 -8 -7 ------- Run | Yrd Mat Sub Mat Fac Slots Evolved 6 | . . . 4 2 Power . | . . . . . Propulsion 2 | . . . 2 . Utility 4 | . . . 2 2 Weapon . | . . . . . Parts Attached 79 | 7 6 21 34 11 Power 9 | 1 . 3 4 1 Engine 6 | 1 . 3 2 . Core 3 | . . . 2 1 Reactor . | . . . . . Propulsion 21 | 2 1 4 12 2 Treads 15 | 2 . 3 10 . Leg . | . . . . . Wheel 2 | . 1 1 . . Hover . | . . . . . Flight 4 | . . . 2 2 Utility 20 | 2 1 4 5 8 Device 4 | 1 . 2 1 . Storage 3 | 1 1 . . 1 Processor 1 | . . . 1 . Hackware 8 | . . . 1 7 Protection 4 | . . 2 2 . Artifact . | . . . . . Weapon 29 | 2 4 10 13 . Energy Gun 6 | 1 . 2 3 . Energy Cannon 5 | . 1 3 1 . Ballistic Gun 9 | 1 . 4 4 . Ballistic Cannon 3 | . 2 . 1 . Launcher 2 | . . . 2 . Special Weapon 2 | . 1 . 1 . Impact Weapon . | . . . . . Slashing Weapon 1 | . . . 1 . Piercing Weapon 1 | . . 1 . . Special Melee Weapon . | . . . . . Unidentified Prototypes 6 | . . . 6 . Parts Lost 12 | . . 4 5 3 Power 2 | . . 1 1 . Propulsion 4 | . . 1 2 1 Utility 3 | . . 1 . 2 Weapon 3 | . . 1 2 . Highest Loss Streak 2 | . . 1 1 2 To Critical Strikes . | . . . . . Average Backups 22 | 4 18 24 24 10 Power . | . 1 . 1 . Propulsion 4 | 1 3 5 3 . Utility 6 | . 7 6 7 4 Weapon 8 | 1 5 10 8 1 Tool/Special . | . . . . . Unused Backups 36 | 1 1 9 11 14 Power . | . . . . . Propulsion 3 | 1 . 2 . . Utility 15 | . . 3 3 9 Weapon 15 | . 1 4 7 3 Tool/Special 3 | . . . 1 2 Average Slot Usage (%) 99 | . 99 99 99 78 Engine 11 | . 13 13 2 . Core 1 | . . . 6 6 Treads 17 | . 15 14 32 . Wheel 10 | . 12 13 3 . Device 12 | . 14 13 9 . Storage 12 | . 14 14 9 6 Processor 1 | . . . 8 . Hackware 2 | . . . 7 31 Energy Gun 1 | . 5 1 . . Energy Cannon 9 | . 7 10 7 . Ballistic Gun 11 | . 10 13 7 . Ballistic Cannon 1 | . 3 . 1 . Special Weapon 1 | . . 1 . . Peak Build Rating 55 | 7 9 20 33 55 Average Rating 16 | 5 8 13 27 50 On Entrance 13 | . 7 9 18 31 Avg Prop Armor Cover (%) 13 | . 12 13 24 . Naked Turns . | . . . . . Heaviest Build 109 | 15 92 102 109 20 Greatest Support 82 | 40 40 40 82 20 Greatest Overweight (x) 6 | 2 5 6 6 . Average Overweight (x) 4 | . 4 5 2 . Largest Inventory Capacity 25 | 8 25 25 25 25 Average Capacity 24 | 7 23 25 25 10 Most Carried 25 | 7 25 25 25 25 Average Carried 23 | 4 18 24 24 10 Final Capacity 25 | 8 25 25 25 10 Final Carried 25 | 7 25 25 25 10 Class Distribution -------------------- 71% | Scavenger-Mutant 25% | Mutant Dominant Class ---------------- Mutant | -10/Materials Scavenger-Mutant | -10/Subcaves Scavenger-Mutant | -8/Materials Hacker-Sprinter | -7/Factory Resources | -11 -10 -10 -8 -7 ----------- Run | Yrd Mat Sub Mat Fac Matter Collected 3315 | 285 498 1267 1121 144 Remotely . | . . . . . Salvage Created 3588 | 126 643 750 1936 133 Parts 205 | 11 34 54 96 10 Haulers Intercepted 7 | . 2 . 5 . Recyclers Shooed 2 | . 2 . . . Parts Field Recycled . | . . . . . Retrieved Matter . | . . . . . Parts Self-Destructed 19 | . . 19 . . Prevented . | . . . . . Parts Restored . | . . . . . Kills | -11 -10 -10 -8 -7 ------- Run | Yrd Mat Sub Mat Fac Combat Hostiles Destroyed 57 | . 8 18 30 1 Guns 23 | . 3 7 13 . Cannons 23 | . 4 11 8 . AOE 10 | . . . 9 1 Classes Destroyed 14 | 2 4 4 4 . Worker 3 | . . . 1 2 Builder 1 | . . . 1 . Tunneler 3 | 2 . . . 1 Hauler 7 | . 2 . 5 . Recycler 6 | 1 2 . 3 . Mechanic 2 | . . . 2 . Operator 5 | . 2 . 2 1 Watcher 5 | . 2 . 2 1 Swarmer 3 | . . 2 . 1 Grunt 35 | . 8 3 24 . Sentry 5 | . . 1 4 . Hunter 2 | . . . 2 . Artisan 2 | . . 2 . . Subdweller 12 | . . 12 . . Best Kill Streak 14 | 2 4 2 14 3 Combat Bots Only 8 | . 4 2 8 1 Max Kills in Single Turn 4 | 1 1 1 4 1 Gunslinging . | . . . . . Exploded 3 | . . . 3 1 Melee . | . . . . . Uniques/NPCs Destroyed . | . . . . . Combat | -11 -10 -10 -8 -7 -------- Run | Yrd Mat Sub Mat Fac Hostile Shots Fired 341 | . 24 100 169 48 Missed 105 | . 10 31 37 27 Hits 236 | . 14 69 132 21 Projectile 236 | . 14 69 132 21 Critical Strikes 6 | . . 1 5 . Damage Taken 3634 | . 195 1050 1981 408 Core 497 | . 34 124 212 127 Absorbed by Shields . | . . . . . Ignored by Resistances 55 | . . 44 11 . Regen/Repaired (Parts) 211 | . 167 . . 44 Core Remaining (%) 65 | 100 . 36 61 . Volleys Fired 276 | 5 59 103 107 2 Largest 2 | 2 2 2 2 1 Hottest 110 | 70 100 110 110 40 Shots Fired 475 | 10 109 150 204 2 Gun 261 | 10 63 50 138 . Cannon 147 | . 39 48 60 . Launcher 8 | . . . 6 2 Special 59 | . 7 52 . . Kinetic 229 | 5 52 49 121 2 Thermal 214 | 5 57 95 57 . Explosive . | . . . . . Electromagnetic 32 | . . 6 26 . Robot Hit Streak 21 | 4 21 21 15 7 Robot Miss Streak 5 | 1 5 4 3 1 Penetration Max 1 | . . . 1 . Secondary Targets 1 | . 1 . . . Max Gunslinging Chain 1 | . 1 . . . Shots Hit Robots 283 | 7 68 66 134 8 Core Hits 132 | 3 24 24 75 6 Critical Kills 1 | . 1 . . . Critical Parts Destroyed 2 | . . . 2 . Critical Strikes 7 | . 5 . 2 . Burn 3 | . 3 . . . Meltdown 1 | . 1 . . . Destroy 2 | . . . 2 . Blast 1 | . 1 . . . Melee Attacks 26 | . . 2 3 21 Impact . | . . . . . Slashing 22 | . . . 1 21 Piercing 4 | . . 2 2 . Sneak Attacks 4 | . . . . 4 Combat Hostiles . | . . . . . Follow-up Attacks . | . . . . . Damage Inflicted 7496 | 90 1017 1453 4189 747 Guns 2898 | 90 535 545 1728 . Cannons 2501 | . 462 908 1131 . Explosions 1552 | . . . 1327 225 Melee 522 | . . . . 522 Ramming 23 | . 20 . 3 . Kinetic 3649 | 40 473 587 2324 225 Thermal 2868 | 50 524 824 1470 . Explosive . | . . . . . Electromagnetic 434 | . . 42 392 . Impact . | . . . . . Slashing 522 | . . . . 522 Piercing . | . . . . . Highest Corruption 8 | . 3 3 6 8 Average Corruption 3 | . 2 2 4 8 Corruption Purged 3 | . . 3 . . Corruption Blocked . | . . . . . Effects 105 | . 18 20 60 7 Message Errors 29 | . 7 5 13 4 Matter Fused 16 | . 4 5 6 1 Heat Flow Errors 17 | . 2 2 13 . Energy Discharges 16 | . 4 1 10 1 Parts Rejected 3 | . . . 3 . Parts Fused 1 | . . . 1 . Data Loss (minor) 9 | . 1 4 4 . Data Loss (major) 7 | . . 2 4 1 Misfires 3 | . . 1 2 . Alerts 1 | . . . 1 . Weapon Failures 3 | . . . 3 . Overload Shots . | . . . . . Overflow Damage 191 | . 15 . 24 152 Projectiles 18 | . 15 . 3 . Explosions 31 | . . . 21 10 Melee 142 | . . . . 142 Knockbacks 1 | . 1 . . . Impact . | . . . . . Kinetic 1 | . 1 . . . Secondary . | . . . . . Self-Inflicted Damage 142 | . 9 . 74 59 Shots 4 | . . . 3 1 Rammed 3 | . 2 . 1 . Targets Rammed 3 | . 2 . 1 . Kicked . | . . . . . Crushed . | . . . . . Highest Temperature 491 | 27 318 189 491 . Average Temperature 94 | 11 66 24 118 . Received Heat Transfer 1338 | . 105 276 927 30 Effects 16 | . 1 . 15 . Shutdowns 2 | . . . 2 . Energy Bleed 5 | . 1 . 4 . Interference 4 | . . . 4 . Matter Decay 1 | . . . 1 . Short Circuit 1 | . . . 1 . Damage (minor) 2 | . . . 2 . Damage (major) 1 | . . . 1 . Siege Activations . | . . . . . Martial Activations . | . . . . . Shielding Activations . | . . . . . Robots Disrupted . | . . . . . Combat Hostiles . | . . . . . Robots Corrupted 1 | . . . 1 . Combat Hostiles . | . . . . . Parts Fried 4 | . . . 4 . Impact Corruptions . | . . . . . Robots Melted 1 | . 1 . . . Combat Hostiles 1 | . 1 . . . Parts Melted 4 | . 1 2 1 . Heat Transferred 4851 | 148 1517 1234 1952 . Parts Sabotaged . | . . . . . Parts Stolen . | . . . . . Parts Stripped . | . . . . . Power Chain Reactions 2 | . . . 2 . Alert | -11 -10 -10 -8 -7 ------- Run | Yrd Mat Sub Mat Fac Maximum Alert Level 2 | . . . 2 2 Low Security (%) 69 | 100 100 . 49 . Level 1 19 | . . . 28 89 Level 2 10 | . . . 21 10 Level 3 . | . . . . . Level 4 . | . . . . . Level 5 . | . . . . . High Security . | . . . . . Max Security . | . . . . . Peak Influence 647 | 5 99 . 635 647 Initial 282 | . . . 85 282 Average 150 | . 41 . 238 310 Influence Increases 2391 | 15 388 265 1148 575 Destroy 0b10 Robot/C 900 | . 160 120 600 20 Destroy 0b10 Robot/NC 160 | 15 40 . 80 25 Destroy Leader 214 | . 58 10 144 2 Successful Hack 109 | . 32 . 54 23 Select Force Hacks 90 | . 60 . 30 . Disable Machine 90 | . 15 . 60 15 Destroy Structure 138 | . 8 . 90 40 Partial Spotted 60 | . . . 15 45 Lose Combat Pursuer 630 | . 15 135 75 405 Influence Decreases 1744 | 15 344 144 693 548 Entered New Map 440 | . . 22 80 338 Time Decay 1214 | 15 344 112 563 180 Lost Part 90 | . . 10 50 30 Squads Dispatched 16 | . 4 . 9 3 Investigation 5 | . 2 . 2 1 Extermination . | . . . . . Reinforcement 11 | . 2 . 7 2 Assault . | . . . . . Garrison . | . . . . . Intercept . | . . . . . Searches Triggered . | . . . . . Construction Impeded 2 | . . . 2 . Haulers Reinforced . | . . . . . Active Scanning Responses . | . . . . . Cargo Convoy Interrupts . | . . . . . Stealth | -11 -10 -10 -8 -7 --------- Run | Yrd Mat Sub Mat Fac Distress Signals 6 | . 1 . 4 1 Communications Jammed . | . . . . . Distress Signals . | . . . . . Times Spotted 140 | . 21 28 52 39 Peak Tracking Total 20 | . 6 6 6 20 Tactical Retreats 13 | . 1 2 5 5 Traps | -11 -10 -10 -8 -7 ------- Run | Yrd Mat Sub Mat Fac Traps Triggered 3 | . 2 . 1 . Indirectly . | . . . . . Trap Hack Attempts . | . . . . . Triggered . | . . . . . Disarmed . | . . . . . Reprogrammed . | . . . . . Reused 2 | . . 2 . . Traps Extracted . | . . . . . Installed 2 | . . 2 . . Triggered . | . . . . . Most Traps Carried 2 | . . 2 . . Machines | -11 -10 -10 -8 -7 ---------- Run | Yrd Mat Sub Mat Fac Machines Disabled 7 | . 1 1 4 1 Max in Single Turn 1 | . 1 1 1 1 Garrison Access 1 | . . . . 1 Machines Repaired . | . . . . . Machines Dismantled . | . . . . . Machines Sabotaged . | . . . . . Overloaded Fab Kills . | . . . . . Hacking | -11 -10 -10 -8 -7 --------- Run | Yrd Mat Sub Mat Fac Machines Accessed 30 | . 8 2 10 10 Terminals 16 | . 5 . 6 5 Fabricators . | . . . . . Repair Stations 3 | . 1 . 1 1 Recycling Units 6 | . 2 . 1 3 Scanalyzers 1 | . . . 1 . Garrison Access 2 | . . . 1 1 Total Hacks 95 | . 30 12 22 31 Successful 62 | . 22 12 10 18 Failed 33 | . 8 . 12 13 Catastrophic 2 | . . . 2 . Database Lockouts . | . . . . . Manual 46 | . 20 . 17 9 Terminals 51 | . 16 . 16 19 Fabricators . | . . . . . Repair Stations 11 | . 8 . 1 2 Recycling Units 17 | . 6 . 2 9 Scanalyzers 2 | . . . 2 . Garrison Access 2 | . . . 1 1 Terminal Hacks 22 | . 4 12 1 5 Record 11 | . . 11 . . Part Schematic 1 | . . . . 1 Robot Analysis 4 | . 4 . . . Branch Access Points 2 | . . . 1 1 Terminal Index 1 | . . . . 1 Fabricator Index 1 | . . . . 1 Zone Layout 1 | . . . . 1 Proto ID Catalog 1 | . . 1 . . Fabricator Hacks . | . . . . . Repair Station Hacks 10 | . 8 . . 2 Scan Component 5 | . 4 . . 1 Repair 5 | . 4 . . 1 Recycling Unit Hacks 9 | . 2 . 1 6 Process 1 | . . . . 1 Report Inventory 5 | . 1 . 1 3 Retrieve Matter 1 | . . . . 1 Retrieve Components 2 | . 1 . . 1 Scanalyzer 1 | . . . 1 . Retrieve Study 1 | . . . 1 . Garrison Access Hacks 1 | . . . . 1 Seal Access 1 | . . . . 1 Unauthorized Hacks 19 | . 8 . 7 4 Terminals 16 | . 6 . 6 4 Botnet 7 | . 2 . 3 2 Operators 4 | . 1 . 2 1 Skim 5 | . 3 . 1 1 Fabricators . | . . . . . Repair Stations . | . . . . . Recycling Units 3 | . 2 . 1 . Tunnel 3 | . 2 . 1 . Scanalyzers . | . . . . . Garrison Access . | . . . . . Data Cores Recovered . | . . . . . Used . | . . . . . Hacking Detections 22 | . 8 . 8 6 Full Trace Events 1 | . . . . 1 Feedback Events . | . . . . . Feedback Blocked . | . . . . . Robot Schematics Acquired . | . . . . . Robots Built . | . . . . . Authchips . | . . . . . Time . | . . . . . Total Robot Build Rating . | . . . . . Part Schematics Acquired 1 | . . . . 1 Parts Built . | . . . . . Authchips . | . . . . . Time . | . . . . . Total Part Build Rating . | . . . . . Part Studies Acquired 1 | . . . 1 . Parts Repaired 5 | . 4 . . 1 Time 126 | . 104 . . 22 Parts Recycled . | . . . . . Recycled Matter 5 | . . . . 5 Retrieved Matter 5 | . . . . 5 Retrieved Components 12 | . 10 . . 2 Parts Scanalyzed . | . . . . . Part Schematics Acquired . | . . . . . Parts Damaged . | . . . . . Bothacking | -11 -10 -10 -8 -7 ------------ Run | Yrd Mat Sub Mat Fac Used RIF Installer . | . . . . . Robots Hacked . | . . . . . Non-combat . | . . . . . Combat . | . . . . . Robot Hacks Applied . | . . . . . Relay Couplers Released . | . . . . . Fabnet Peak Effective % . | . . . . . Robots Rewired . | . . . . . Allies Hacked . | . . . . . Hacks Repelled . | . . . . . Allies | -11 -10 -10 -8 -7 -------- Run | Yrd Mat Sub Mat Fac Total Allies . | . . . . . Largest Group . | . . . . . Highest-Rated Group . | . . . . . Highest-Rated Ally . | . . . . . Total Orders . | . . . . . Ally Attacks . | . . . . . Total Damage . | . . . . . Kills . | . . . . . Allies Corrupted . | . . . . . Allies Melted . | . . . . . Intel | -11 -10 -10 -8 -7 ------- Run | Yrd Mat Sub Mat Fac Active Infowar (turns) 13292 | 91 2518 8226 2439 18 Terrain 712 | . . 712 . . Seismic 12580 | 91 2518 7514 2439 18 Robot Analysis Total 4 | . 4 . . . Derelict Logs Recovered 1 | . . 1 . . Drone Launches . | . . . . . Drone Recoveries . | . . . . . Exploration | -11 -10 -10 -8 -7 ------------- Run | Yrd Mat Sub Mat Fac Turns Passed 14767 | 153 2518 9007 2727 362 Spaces Moved 6141 | 74 1109 3109 963 886 Core 7 | 7 . . . . Treads 860 | 67 137 65 591 . Legs . | . . . . . Wheels 4388 | . 972 3044 372 . Hover . | . . . . . Flight 886 | . . . . 886 Fastest Speed 27 | 50 160 175 175 27 Average Speed 166 | 152 173 188 218 27 Slowest Speed 320 | 160 175 320 241 27 Overloaded Moves . | . . . . . Propulsion Burnouts . | . . . . . Robots Hopped 15 | . . . . 15 Potential Cave-ins 3 | . . 2 . 1 Cave-ins Triggered 1 | . . . . 1 Exploration Rate (%) 59 | 4 99 96 77 20 Regions Visited 4 Branch Regions 1 Pre-discovered Areas 4 | . 2 1 1 . Known Exits Taken 1 | . . . 1 . Unknown Exits Taken 3 | 1 1 1 . . Scrap Searched 13 | . . 13 . . Spaces Dug 35 | . 6 12 3 14 Terrain Destroyed 150 | . 6 12 89 43 Melee 18 | . . 1 3 14 Projectile 24 | . 6 11 7 . AOE 108 | . . . 79 29 Terrain Rammed . | . . . . . Walls Destroyed . | . . . . . Machines Disabled . | . . . . . Actions | -11 -10 -10 -8 -7 --------- Run | Yrd Mat Sub Mat Fac Total 9981 | 101 1575 5974 1374 957 Wait 3126 | 7 363 2596 150 10 Move 6107 | 73 1108 3108 962 856 Hop 15 | . . . . 15 Pick Up 102 | 8 22 28 35 9 Fast Attach 28 | 7 2 1 16 2 Attach 28 | . . 9 8 11 Detach 2 | . . . 1 1 Swap 170 | . 16 101 45 8 Drop 92 | 1 3 24 45 19 Fire 276 | 5 59 103 107 2 Melee 26 | . . 2 3 21 Ram 2 | . 2 . . . Kick . | . . . . . Crush 1 | . . . 1 . Escape Stasis . | . . . . . Rewire . | . . . . . Trap 2 | . . 2 . . Miscellaneous 4 | . . . 1 3 Route ------- -11/Scrapyard -10/Materials (discovered 5 exits: [*Mat x3] / [*Min] / *Sub) -10/Subcaves (discovered 3 exits: *Mat x2 / [*Rec]) -8/Materials (discovered 3 exits: *Fac x3) -7/Factory (discovered 3 exits: [*Fac] / Low x2) History --------- Turn | Location | Event 5 | -11/Scrapyard | Discovered new exit (range 15) 154 | -11/Scrapyard | Entered Materials 258 | -10/Materials | Discovered new exit (range 10) 307 | -10/Materials | Build established: Mutant 347 | -10/Materials | Discovered new exit (range 15) 1225 | -10/Materials | Discovered new exit (range 7) 1618 | -10/Materials | Discovered new exit (range 5) 2404 | -10/Materials | Repaired Lgt. Treads 2431 | -10/Materials | Repaired Lgt. Treads 2459 | -10/Materials | Repaired Ion Engine 2486 | -10/Materials | Repaired Lgt. Cannon 2657 | -10/Materials | Discovered new exit (range 8) 2672 | -10/Materials | Entered Subcaves 2698 | -10/Subcaves | A swath of the cavern ceiling suddenly collapsed 3164 | -10/Subcaves | Disturbed a concealed Subdweller 3420 | -10/Subcaves | Build established: Scavenger-Mutant 3863 | -10/Subcaves | Discovered new exit (range 14) 3871 | -10/Subcaves | Learned location of Zion (-7) 3871 | -10/Subcaves | Met a Zionite searching for "candidates" 4080 | -10/Subcaves | Disturbed a concealed Subdweller 7772 | -10/Subcaves | A swath of the cavern ceiling suddenly collapsed 8150 | -10/Subcaves | Disturbed a concealed Subdweller 8185 | -10/Subcaves | Shifting Twisted Machinery released Scrap Shield 8279 | -10/Subcaves | Shifting Twisted Machinery released Shrapnel Trap 9150 | -10/Subcaves | Discovered new exit (range 14) 9224 | -10/Subcaves | Learned location of 1 exit from Materials 9248 | -10/Subcaves | Visited 4L-MR0's lab 9270 | -10/Subcaves | Found Power Bank 9657 | -10/Subcaves | Shifting Twisted Machinery released Battle Rifle 9721 | -10/Subcaves | Shifting Twisted Machinery released Shrapnel Trap 9927 | -10/Subcaves | Discovered new exit (range 7) 10582 | -10/Subcaves | A Subdweller sparked back to life 10582 | -10/Subcaves | A Subdweller sparked back to life 10582 | -10/Subcaves | A Subdweller sparked back to life 10587 | -10/Subcaves | Core integrity fell below 50% 10675 | -10/Subcaves | Found Meta Core 11019 | -10/Subcaves | Curiously followed by a Cobbler waking with a query about "LVR3C" 11261 | -10/Subcaves | Visited Clippyterm 11266 | -10/Subcaves | Learned Factory stockpile data 11280 | -10/Subcaves | Shifting Twisted Machinery released Mak. Spear 11330 | -10/Subcaves | Shifting Twisted Machinery released Mak. Hacking Suite 11679 | -10/Subcaves | Entered Materials 11679 | -8/Materials | Evolved 4 slots: Propulsion x2, Utility x2 11680 | -8/Materials | Identified exit to Factory 12388 | -8/Materials | Destroyed 8 combat bots 13183 | -8/Materials | Discovered exit to Factory (range 16) 14346 | -8/Materials | Discovered exit to Factory (range 16) 14406 | -8/Materials | Entered Factory 14406 | -7/Factory | Evolved 2 slots: Utility x2 14415 | -7/Factory | Attached Meta Core, gained temporary slots: Propulsion, Utility, Weapon 14534 | -7/Factory | Repaired Mak. Power Source 14588 | -7/Factory | Crushed by falling debris 14633 | -7/Factory | Discovered new exit (range 15) 14641 | -7/Factory | Identified exit to Lower Caves 14768 | -7/Factory | Self-destructed Last Messages --------------- 14712_ Slug penetrates Nuclear Reactor. 14715_ System corrupted: Energy discharge (-37). 14718_ K-01 Serf collects debris. 14738_ K-01 Serf cleans the Neutrino Reactor. 14738_ Connecting with Recycling Unit... >>Recycling(Report) Matter reserves: 0 Inventory: Lyr. Medium Armor Plating (45%) 14742_ K-01 Serf cleans the Power Conduit. 14759_ |HQ,FYP6C5VJETTW=NB|XK>NW: Y0:FI R3WI>Z 14759_ Connecting with Terminal... >>Layout(Zone) Retrieving Zone 1X layout... Downloaded map data. 14761_ Terminal reconfigured, -7% effectiveness. 14762_ VTOL Module+ destroyed. 14764_ Destroyed VTOL Module. 14764_ S-27 Virus destroyed. 14766_ Terminal disabled. Map ----- +----------------------------------------------------+ | ???????????? #?????? ????????? | | ?????????????##+#### #????? """"????????? | | ???????????????????# #####? """"????????? | | ???????????????????# # """"????????? | | ?????????????????### # """"""??????? | | ??????????????? / + #???? | | ????????????? #### [! # #???? | | ???????????????????# [ # #???? | | ?????????????????#####/####### #?" " #???? | | ????????????????# # #?"Y" #???? | | ????????????????#! ! + #??"" #???? | | ??????????? # " " " ## ##############???? | | ??????????? # " " " ## ##!!! ???????? | | ??????????? # " " " ## ##!!! """ #??????? | | ???????????###### " " " ## ##!!! """ ???##### | | ????????????????# " " " ## ## """ ?? | | ????????????????# """ " " " ## ## ? | | ????????????????# "R " " " # ##+####### | | ????????????????# """ " " " # " | | ????????????????# "" " " " # ## | | ????????????????# ###### | | ????????????????###########;;#????# """ """ "" | | ?????????????########### ## ;###??## """ """??? | | ?????????????#! ;;;; ;;;##### """ ""???? | | ?????????????# ; # "" ""??? | | ?????????????# """ """ ; @ ;;;; "" "" ?? | | ?????????????# """ """ ; s | | ???????????### """ """ ; s s% | | ??????????? # ; | | ??????????? # ; ;;;;; #######+# | | ??????????? # # ###########???????? | | ???????????" ##############+#######??????????????? | | ???????????" #???????# #??????????????? | | ???????????" #???????# #??????????????? | | ???????????###???????# #??????????????? | | ?????????????????????# #??????????????? | | ?????????????????????# #??????????????? | | ?????????????????????# #??????????????? | | ?????????????????????# #??????????????? | | ?????????????????????# #??????????????? | | ?????????????????????# #??????????????? | | ?????????????????????# #??????????????? | | ?????????????????????????????????????????????????? | | ?????????????????????????????????????????????????? | | ?????????????????????????????????????????????????? | | | | | | | | | | | +----------------------------------------------------+ Best States ------------- Heat Dissipation 41 Energy Generation 17 Energy Capacity 265 Matter Stores 300 Matter Capacity 300 Sight Range 16 Terrain Scan Range 16 Terrain Scan Density 10 Armor Coverage 150 Resistance: KI 20 Resistance: TH 10 Evasion (%) 64 Targeting Accuracy 5 Recoil Reduction 4 Offensive Hacking 43 Defensive Hacking 20 Item Schematics ----------------- Cld. VTOL Module | -7/Factory | Hacked Robot Schematics ------------------ None Fabricated ------------ Nothing Repaired ---------- Lgt. Treads | 68% | -10/Materials Lgt. Treads | 64% | -10/Materials Ion Engine | 50% | -10/Materials Lgt. Cannon | 64% | -10/Materials Mak. Power Source | 12% | -7/Factory Studied --------- VTOL Module | -8/Materials | Hacked Alien Tech Used ----------------- None Achievements -------------- None Challenges ------------ None Game ------ Seed InsulatedCombatHoverbase Manual? 0 Play Time 02:11:16 Cumulative 62.2 hours Start 2025.11.24 @ 17:58:29 End 2025.11.24 @ 20:29:01 Sessions 1 Manual Loads 0 Difficulty Rogue Special Mode None Game No. 34 Rogue 34 Adventurer 0 Explorer 0 Win Type - Total 1 Types 1/0/0/0/0/0/0/0/0/0 Lore% 23 Gallery% 30 Achievement% 34 Wizard Run 0 Options --------- Layout 0 ASCII 0 Keyboard 0 Movement Mouse Keybinds 0 Fullscreen 1 Font 18/SmallcapsGlow Map View 76x50 Zoom Use 0% Tactical HUD 1 Map Filters NONE Filters NONE Steam 1 RUN: 9462ed02-9d77-4017-be6d-94dc050fa8dc